[Event "NED-ch U14 Youth 2019"]
[Site "Assen"]
[Date "2019.04.30"]
[Round "4.4"]
[White "Catalan, Ciro"]
[Black "Boghossian, Wahe"]
[Result "1-0"]
[ECO "A65"]
[WhiteElo "1599"]
[BlackElo "1820"]
[Annotator "NA"]
[PlyCount "93"]
[EventDate "2019.04.28"]
[EventType "swiss"]
[EventCountry "NED"]
[SourceTitle "playchess.com"]
[Source "ChessBase"]
[SourceQuality "1"]
[TimeControl "5400+30"]

1. d4 {[%emt 0:00:00]} Nf6 {[%emt 0:00:00]} 2. c4 {[%emt 0:00:00]} e6 {[%emt 0:00:00]} 3. Nc3 {[%emt 0:00:00]} c5 {[%emt 0:00:00]} 4. d5 {[%emt 0:00:00]} exd5 {[%emt 0:01:01]} 5. cxd5 {[%emt 0:00:00]} d6 {[%emt 0:00:29]} 6. e4 {[%emt 0:00:00]} Be7 {[%emt 0:01:56]} 7. f3 {[%emt 0:01:08]} a6 {[%emt 0:02:21]} 8. a4 {[%emt 0:00:07]} Nbd7 {[%emt 0:02:23]} 9. Nge2 {[%emt 0:00:28]} h6 {[%emt 0:14:00]} 10. Ng3 {[%emt 0:00:41]} Ne5 {[%emt 0:13:45]} 11. Be3 {[%emt 0:11:06]} O-O {[%emt 0:07:02]} 12. Be2 {[%emt 0:03:14]} Nh7 {[%emt 0:12:46]} 13. f4 {[%emt 0:25:02]} Ng6 {[%emt 0:02:45]} 14. O-O {[%emt 0:07:29]} b6 {[%emt 0:17:09]} 15. Qd2 {[%emt 0:13:17]} Rb8 $16 {[%emt 0:03:34]} (15... Re8 $14) 16. Rad1 {[%emt 0:16:08]} Qc7 {[%emt 0:01:33]} 17. e5 {[%emt 0:04:26]} dxe5 {[%emt 0:01:33]} 18. d6 {[%emt 0:03:32]} Bxd6 {[%emt 0:00:20]} 19. Qxd6 {[%emt 0:00:11]} Qxd6 {[%emt 0:00:19]} 20. Rxd6 {[%emt 0:00:02]} exf4 {[%emt 0:00:23]} 21. Bxf4 {[%emt 0:01:20]} Nxf4 {[%emt 0:00:21]} 22. Rxf4 {[%emt 0:00:08]} Ng5 {[%emt 0:00:59]} 23. Rf1 {[%emt 0:03:37]} Be6 {[%emt 0:03:10]} 24. h4 {[%emt 0:01:36]} Nh7 {[%emt 0:00:21]} 25. Bxa6 {[%emt 0:01:28]} Nf6 {[%emt 0:00:11]} 26. Bb5 {[%emt 0:00:39]} Bb3 {[%emt 0:02:18]} 27. Nge4 {[%emt 0:01:37]} Ng4 {[%emt 0:00:43]} 28. Nd2 {[%emt 0:01:04]} Be6 {[%emt 0:00:24]} 29. Re1 {[%emt 0:01:19]} h5 {[%emt 0:01:09]} 30. Nc4 {[%emt 0:00:20]} Rfd8 {[%emt 0:03:19]} 31. Red1 {[%emt 0:00:55]} Rf8 {[%emt 0:01:30]} 32. Nd5 {[%emt 0:01:03]} Kh8 {[%emt 0:01:15]} 33. Ndxb6 {[%emt 0:00:23]} Nf6 {[%emt 0:01:51]} 34. R6d2 {[%emt 0:01:17]} Ne4 {[%emt 0:01:04]} 35. Rd3 {[%emt 0:00:18]} Bg4 {[%emt 0:00:44]} 36. Re1 {[%emt 0:00:12]} Nf6 {[%emt 0:00:27]} 37. Nd5 {[%emt 0:01:04]} Bf5 {[%emt 0:02:24]} 38. Rdd1 {[%emt 0:00:55]} Ng4 {[%emt 0:00:49]} 39. Nde3 {[%emt 0:00:41]} Be6 {[%emt 0:00:39]} 40. Nxg4 {[%emt 0:00:16]} hxg4 {[%emt 0:00:02]} 41. Rd2 {[%emt 0:00:28]} g6 {[%emt 0:00:44]} 42. Ne5 {[%emt 0:00:30]} Rfc8 {[%emt 0:00:43]} 43. Nxg6+ {[%emt 0:00:33]} Kg7 {[%emt 0:00:26]} 44. Nf4 {[%emt 0:00:53]} Bf5 {[%emt 0:00:15]} 45. Rd5 {[%emt 0:00:52]} Bh7 {[%emt 0:00:30]} 46. Rg5+ {[%emt 0:00:16]} Kf6 {[%emt 0:00:32]} 47. Nd5# {[%emt 0:00:08]} 1-0

[Event "NED-ch U14 Youth 2019"]
[Site "Assen"]
[Date "2019.04.30"]
[Round "4.5"]
[White "Yeh, Timo"]
[Black "Bartels, Vladimir"]
[Result "1-0"]
[ECO "E43"]
[WhiteElo "1783"]
[BlackElo "1748"]
[Annotator "NA"]
[PlyCount "87"]
[EventDate "2019.04.28"]
[EventType "swiss"]
[EventCountry "NED"]
[SourceTitle "playchess.com"]
[Source "ChessBase"]
[SourceQuality "1"]
[TimeControl "5400+30"]

1. d4 {[%emt 0:00:00]} Nf6 {[%emt 0:00:00]} 2. Nf3 {[%emt 0:00:00]} e6 {[%emt 0:00:00]} 3. c4 {[%emt 0:00:00]} b6 {[%emt 0:00:00]} 4. Nc3 {[%emt 0:00:00]} Bb4 {[%emt 0:00:01]} 5. Bd2 {[%emt 0:00:00]} Bb7 {[%emt 0:00:08]} 6. e3 {[%emt 0:00:00]} O-O {[%emt 0:00:10]} 7. Bd3 {[%emt 0:00:00]} d6 {[%emt 0:00:13]} 8. O-O {[%emt 0:00:00]} c5 {[%emt 0:00:15]} 9. d5 {[%emt 0:01:03]} exd5 {[%emt 0:05:08]} 10. Nxd5 {[%emt 0:00:13]} Bxd2 {[%emt 0:01:43]} 11. Qxd2 {[%emt 0:00:01]} Re8 {[%emt 0:01:45]} 12. Rfd1 {[%emt 0:01:01]} Nbd7 {[%emt 0:01:22]} 13. Qc2 {[%emt 0:02:07]} h6 {[%emt 0:08:23]} 14. Be2 {[%emt 0:00:08]} Nxd5 {[%emt 0:01:01]} 15. cxd5 {[%emt 0:00:02]} Nf6 {[%emt 0:00:54]} 16. Bc4 {[%emt 0:01:04]} Rb8 {[%emt 0:17:51]} 17. Rab1 {[%emt 0:00:39]} a6 {[%emt 0:06:04]} 18. a4 {[%emt 0:00:38]} Re7 {[%emt 0:02:30]} 19. b4 {[%emt 0:00:44]} Qc7 {[%emt 0:15:55]} 20. Ba2 {[%emt 0:06:57]} Rc8 {[%emt 0:06:42]} 21. bxc5 {[%emt 0:00:28]} bxc5 {[%emt 0:01:59]} 22. Rd3 {[%emt 0:01:23]} c4 {[%emt 0:03:33]} 23. Rd4 {[%emt 0:00:11]} Bxd5 {[%emt 0:01:11]} 24. Nd2 {[%emt 0:00:32]} Be6 {[%emt 0:01:57]} 25. Rc1 {[%emt 0:08:10]} d5 {[%emt 0:04:53]} 26. e4 {[%emt 0:00:51]} c3 {[%emt 0:03:33]} 27. Nb1 {[%emt 0:02:11]} Nxe4 {[%emt 0:02:15]} 28. Bxd5 {[%emt 0:00:48]} Bxd5 {[%emt 0:00:07]} 29. Rxd5 {[%emt 0:00:06]} Nd2 {[%emt 0:06:09]} 30. h3 {[%emt 0:01:47]} Qb7 {[%emt 0:05:48]} 31. Rxd2 {[%emt 0:02:00]} Rce8 {[%emt 0:03:01]} 32. Rdd1 {[%emt 0:01:56]} Qb2 {[%emt 0:00:49]} 33. Qxc3 {[%emt 0:00:38]} Qb8 {[%emt 0:00:22]} 34. Nd2 {[%emt 0:00:24]} f6 {[%emt 0:00:36]} 35. Nf3 {[%emt 0:00:20]} Kf8 {[%emt 0:00:19]} 36. Rb1 {[%emt 0:00:37]} Qf4 {[%emt 0:00:14]} 37. Qd4 {[%emt 0:00:56]} Qf5 {[%emt 0:00:22]} 38. Qd3 {[%emt 0:00:09]} Qa5 {[%emt 0:00:32]} 39. Qd4 {[%emt 0:01:39]} Re4 {[%emt 0:00:48]} 40. Qd6+ {[%emt 0:00:12]} Kg8 {[%emt 0:00:07]} 41. Rd4 {[%emt 1:10:35]} R4e6 {[%emt 0:01:11]} 42. Qd5 {[%emt 0:00:00]} Qc3 {[%emt 0:00:34]} 43. Re4 {[%emt 0:00:00]} Qc2 {[%emt 0:00:24]} 44. Rbe1 {[%emt 0:01:30]} 1-0

[Event "NED-ch U14 Youth 2019"]
[Site "Assen"]
[Date "2019.04.30"]
[Round "4.7"]
[White "De Winter, Arthur"]
[Black "Kutchoukov, Daniel"]
[Result "1/2-1/2"]
[ECO "B16"]
[WhiteElo "1661"]
[BlackElo "1862"]
[Annotator "NA"]
[PlyCount "99"]
[EventDate "2019.04.28"]
[EventType "swiss"]
[EventCountry "NED"]
[SourceTitle "playchess.com"]
[Source "ChessBase"]
[SourceQuality "1"]
[TimeControl "5400+30"]

1. e4 {[%emt 0:00:00]} c6 {[%emt 0:00:00]} 2. d4 {[%emt 0:00:00]} d5 {[%emt 0:00:00]} 3. Nc3 {[%emt 0:00:00]} dxe4 {[%emt 0:00:00]} 4. Nxe4 {[%emt 0:00:00]} Nf6 {[%emt 0:01:24]} 5. Nxf6+ {[%emt 0:00:00]} gxf6 {[%emt 0:01:32]} 6. Nf3 {[%emt 0:00:58]} h5 {[%emt 0:03:20] B16: Caro-Kann: Bronstein-Larsen Variation} (6... Bg4 7. Be2 Nd7 8. h3 Bh5 9. O-O Qc7 10. a4 Bg7 11. a5 O-O 12. Nh4 Bg6 13. Re1 Rad8 14. c3 e6 15. Bf3 Rfe8 {0-1 (81) Kulaots,K (2556)-Kovalenko,I (2684) Tallinn 2016}) 7. Bf4 {[%emt 0:04:49]} h4 {[%emt 0:01:05]} 8. Bc4 {[%emt 0:02:56]} h3 {[%emt 0:01:49]} 9. g3 {[%emt 0:01:34]} Bg4 {[%emt 0:03:57]} 10. c3 $146 {[%emt 0:02:55]} ({Predecessor:} 10. Qd3 Bxf3 11. Qxf3 Qxd4 12. Bb3 Qxb2 13. O-O Nd7 14. Bc7 {0-1 (26) Arendarski,L (1893)-Ozgur,E ICC INT 2009}) 10... e6 {[%emt 0:22:11]} 11. Be2 {[%emt 0:06:57]} Bd6 {[%emt 0:17:58]} ({Black should play} 11... Qd5 $11) 12. Bxd6 {[%emt 0:01:37]} Qxd6 {[%emt 0:00:26]} 13. Nh4 {[%emt 0:11:21]} Qd5 {[%emt 0:24:46]} (13... Bxe2 $11 {keeps the balance.} 14. Qxe2 Qd5) 14. Bf3 {[%emt 0:00:21]} Bxf3 {[%emt 0:00:05]} 15. Qxf3 {[%emt 0:00:11]} Qg5 {[%emt 0:02:44]} 16. Qe3 {[%emt 0:02:33]} Qxe3+ {[%emt 0:02:46]} 17. fxe3 {[%emt 0:00:15]} f5 {[%emt 0:01:19]} 18. Nf3 {[%emt 0:02:37]} Nd7 {[%emt 0:00:22]} 19. Ke2 {[%emt 0:01:40]} Nf6 {[%emt 0:01:24]} 20. Ne5 {[%emt 0:03:14]} Ke7 {[%emt 0:04:37]} 21. Rhg1 {[%emt 0:02:55]} Rag8 {[%emt 0:03:32]} 22. Raf1 {[%emt 0:04:07]} Rh7 {[%emt 0:02:41]} 23. Kd3 {[%emt 0:06:45]} Rhh8 {[%emt 0:02:35]} 24. c4 {[%emt 0:01:21]} Rh7 {[%emt 0:00:53]} 25. Rf3 {[%emt 0:04:28]} Rhg7 {[%emt 0:00:31]} 26. Rff1 {[%emt 0:02:04]} Rh7 {[%emt 0:00:08]} 27. b4 {[%emt 0:00:49]} Rhg7 {[%emt 0:00:30]} 28. Rb1 {[%emt 0:02:27]} Ng4 {[%emt 0:00:53]} 29. Nxg4 {[%emt 0:00:59]} fxg4 $11 {[%emt 0:00:30]} 30. b5 {[%emt 0:00:43]} Kd7 {[%emt 0:00:30]} 31. Rgc1 {[%emt 0:01:22]} f5 {[%emt 0:00:28]} 32. Rc3 {[%emt 0:00:33]} cxb5 {[%emt 0:00:33]} 33. Rxb5 {[%emt 0:00:17]} b6 {[%emt 0:00:25]} 34. c5 {[%emt 0:00:23]} bxc5 {[%emt 0:00:25]} 35. Rcxc5 {[%emt 0:00:27]} Kd6 {[%emt 0:00:36]} 36. Ra5 {[%emt 0:00:19]} Rb8 {[%emt 0:00:32]} 37. e4 {[%emt 0:01:23]} fxe4+ {[%emt 0:00:25]} 38. Kxe4 {[%emt 0:00:12]} Rb2 {[%emt 0:00:35]} 39. Ra6+ {[%emt 0:00:32]} Rb6 {[%emt 0:00:29]} 40. Rca5 {[%emt 0:00:54]} Rf7 {[%emt 0:00:32]} 41. Rxa7 {[%emt 0:01:11]} Rf2 {[%emt 0:00:28]} 42. R5a6 {[%emt 0:00:14]} Rxa6 {[%emt 0:00:31]} 43. Rxa6+ {[%emt 0:00:06]} Kd7 {[%emt 0:00:03]} 44. Ra7+ {[%emt 0:00:56]} Kd6 {[%emt 0:00:10]} 45. Ra6+ {[%emt 0:00:12]} Kd7 {[%emt 0:00:04]} 46. Ra7+ {[%emt 0:01:10]} Kd6 {[%emt 0:00:44]} 47. a4 {[%emt 0:01:28]} Rxh2 {[%emt 0:00:44]} 48. Kf4 {[%emt 0:00:07]} Rd2 {[%emt 0:01:11]} 49. Kxg4 {[%emt 0:00:09]} h2 {[%emt 0:00:05]} 50. Rh7 {[%emt 0:00:15]} 1/2-1/2

[Event "NED-ch U14 Youth 2019"]
[Site "Assen"]
[Date "2019.04.30"]
[Round "4.8"]
[White "Slagboom, Leandro"]
[Black "Jakhari, Ansh"]
[Result "1-0"]
[ECO "A14"]
[WhiteElo "1738"]
[BlackElo "1630"]
[Annotator "NA"]
[PlyCount "95"]
[EventDate "2019.04.28"]
[EventType "swiss"]
[EventCountry "NED"]
[SourceTitle "playchess.com"]
[Source "ChessBase"]
[SourceQuality "1"]
[TimeControl "5400+30"]

1. Nf3 {[%emt 0:00:00]} d5 {[%emt 0:00:00]} 2. c4 {[%emt 0:00:00]} e6 {[%emt 0:00:00]} 3. g3 {[%emt 0:00:00]} Nf6 {[%emt 0:00:11]} 4. Bg2 {[%emt 0:00:00]} Be7 {[%emt 0:00:30]} 5. O-O {[%emt 0:00:00]} O-O {[%emt 0:00:10]} 6. b3 {[%emt 0:00:00]} c6 {[%emt 0:01:58]} 7. Bb2 {[%emt 0:00:38]} Nbd7 {[%emt 0:00:36]} 8. e3 {[%emt 0:00:23]} a5 {[%emt 0:02:06]} 9. Nc3 {[%emt 0:00:22]} Rb8 {[%emt 0:01:25]} 10. Qe2 {[%emt 0:02:35]} b6 {[%emt 0:01:32]} 11. d4 {[%emt 0:01:15]} Ba6 {[%emt 0:00:55]} 12. Rac1 {[%emt 0:02:05]} Ra8 {[%emt 0:01:29]} 13. Rfd1 {[%emt 0:02:11]} Qb8 {[%emt 0:00:50]} 14. e4 {[%emt 0:05:29]} Re8 {[%emt 0:09:11]} 15. e5 {[%emt 0:03:38]} Nh5 {[%emt 0:00:19]} 16. Qd2 {[%emt 0:06:43]} g6 {[%emt 0:00:43]} 17. Ne2 {[%emt 0:02:50]} f6 {[%emt 0:02:51]} 18. exf6 {[%emt 0:07:17]} Nhxf6 {[%emt 0:00:29]} 19. Ne5 {[%emt 0:01:17]} Nxe5 {[%emt 0:01:50]} 20. dxe5 {[%emt 0:00:15]} Nh5 {[%emt 0:00:42]} 21. Nd4 {[%emt 0:04:58]} Bb4 {[%emt 0:00:27]} 22. Qg5 {[%emt 0:03:02]} Bb7 {[%emt 0:04:19]} 23. cxd5 {[%emt 0:17:01]} cxd5 {[%emt 0:00:06]} 24. Nb5 {[%emt 0:03:05]} Bc5 {[%emt 0:02:14]} 25. Bd4 {[%emt 0:04:02]} Ba6 {[%emt 0:02:04]} 26. Bxc5 {[%emt 0:01:16]} Bxb5 {[%emt 0:00:59]} 27. Bd6 {[%emt 0:00:18]} Qd8 {[%emt 0:01:15]} 28. Qxd8 {[%emt 0:03:24]} Raxd8 {[%emt 0:01:46]} 29. Bc7 {[%emt 0:00:18]} Rd7 {[%emt 0:00:13]} 30. Bxb6 {[%emt 0:00:32]} Ra8 {[%emt 0:00:45]} 31. a4 {[%emt 0:02:15]} Ba6 {[%emt 0:04:37]} 32. Bxa5 {[%emt 0:02:22]} Be2 {[%emt 0:00:02]} 33. Rd2 {[%emt 0:00:48]} Rxa5 {[%emt 0:00:03]} 34. Rxe2 {[%emt 0:00:21]} Rb7 {[%emt 0:00:19]} 35. Re3 {[%emt 0:03:06]} Rb4 {[%emt 0:00:15]} 36. f4 {[%emt 0:01:35]} Ng7 {[%emt 0:00:42]} 37. Bh3 {[%emt 0:00:48]} Nf5 {[%emt 0:01:18]} 38. Bxf5 {[%emt 0:00:08]} gxf5 {[%emt 0:00:04]} 39. Rc8+ {[%emt 0:01:14]} Kg7 {[%emt 0:01:35]} 40. Rec3 {[%emt 0:00:27]} h6 {[%emt 0:03:07]} 41. h3 {[%emt 0:03:14]} Rd4 {[%emt 0:00:22]} 42. R3c7+ {[%emt 0:01:28]} Kg6 {[%emt 0:01:33]} 43. g4 {[%emt 0:00:40]} fxg4 {[%emt 0:00:55]} 44. hxg4 {[%emt 0:00:23]} h5 {[%emt 0:00:06]} 45. Rg8+ {[%emt 0:00:06]} Kh6 {[%emt 0:00:07]} 46. Rh8+ {[%emt 0:00:07]} Kg6 {[%emt 0:00:05]} 47. Rg8+ {[%emt 0:00:14]} Kh6 {[%emt 0:00:05]} 48. g5# {[%emt 0:00:37]} 1-0

[Event "NED-ch U14 Youth 2019"]
[Site "Assen"]
[Date "2019.04.30"]
[Round "4.9"]
[White "De Heij, Mees"]
[Black "Klaren, Duncan"]
[Result "1/2-1/2"]
[ECO "D40"]
[WhiteElo "1524"]
[BlackElo "1980"]
[Annotator "NA"]
[PlyCount "73"]
[EventDate "2019.04.28"]
[EventType "swiss"]
[EventCountry "NED"]
[SourceTitle "playchess.com"]
[Source "ChessBase"]
[SourceQuality "1"]
[TimeControl "5400+30"]

1. d4 {[%emt 0:00:00]} (1. c4 c5 2. Nf3 Nf6 3. e3 e6 4. d4 d5 {½-½ (6) Kurajica,B (2507)-Dizdarevic,E (2495) Zenica 2013}) 1... Nf6 {[%emt 0:00:00]} 2. c4 {[%emt 0:00:00]} c5 {[%emt 0:00:00]} 3. e3 {[%emt 0:01:21]} e6 {[%emt 0:00:24]} 4. Nc3 {[%emt 0:00:32]} d5 {[%emt 0:00:10]} 5. Nf3 {[%emt 0:01:26]} Nc6 {[%emt 0:01:14]} 6. Be2 {[%emt 0:01:43]} Be7 {[%emt 0:00:31]} 7. h3 {[%emt 0:02:06] D40: Queen's Gambit Declined: Semi-Tarrasch with 5 e3} b6 {[%emt 0:00:55]} 8. b3 {[%emt 0:01:25]} Bb7 {[%emt 0:00:45]} 9. Bb2 {[%emt 0:01:34]} O-O {[%emt 0:00:24]} 10. O-O {[%emt 0:00:17]} Rc8 {[%emt 0:01:48]} 11. Qd2 $146 {[%emt 0:01:03]} ({Predecessor:} 11. Qc2 Na5 12. dxc5 dxc4 13. b4 Nc6 14. b5 {1-0 (27) Feichtenschlager,G-Coduro,M Landshut 2000}) 11... Qc7 {[%emt 0:01:13]} 12. Rac1 {[%emt 0:01:44]} Qb8 {[%emt 0:00:59]} 13. Rfd1 {[%emt 0:05:36]} Rfd8 {[%emt 0:02:10]} 14. Qc2 {[%emt 0:02:29]} Na5 {[%emt 0:19:02]} (14... Nb4 $15 15. Qb1 dxc4 16. bxc4 Bxf3 17. Bxf3 cxd4 18. exd4 Rxc4) 15. Nd2 $2 {[%emt 0:21:44]} (15. cxd5 $14 cxd4 16. Nxd4 (16. Rxd4 Nxd5 17. Nxd5 Rxd5 $11) 16... Nxd5 17. Nxd5 Bxd5 18. Qb1) 15... dxc4 {[%emt 0:06:00]} ({Better is} 15... cxd4 $19 16. exd4 dxc4 17. bxc4 Rxd4) 16. Nxc4 {[%emt 0:00:35]} Nc6 {[%emt 0:00:30]} 17. dxc5 {[%emt 0:00:48]} Bxc5 {[%emt 0:00:47]} 18. Bf1 {[%emt 0:11:05]} a6 {[%emt 0:03:07] [#]} (18... Bf8 $11 {remains equal.}) 19. Ne4 {[%emt 0:02:48]} ({Better is} 19. Na4 $1 $16) 19... Nxe4 $1 {[%emt 0:32:58]} 20. Qxe4 {[%emt 0:00:15]} Ne7 {[%emt 0:00:20]} 21. Qg4 {[%emt 0:00:38]} Ng6 $1 {[%emt 0:00:26]} 22. h4 {[%emt 0:10:53]} Rxd1 {[%emt 0:03:39]} 23. Rxd1 {[%emt 0:00:12]} h5 {[%emt 0:10:22]} 24. Qxh5 {[%emt 0:06:24]} Be7 $18 {[%emt 0:01:51]} (24... Rd8 $16 25. Be2 Rxd1+ 26. Bxd1 Be4) 25. Bd3 {[%emt 0:09:57]} Rc5 {[%emt 0:01:45]} 26. Be5 {[%emt 0:01:54]} Nf8 {[%emt 0:04:55]} 27. b4 {[%emt 0:02:42]} Rb5 {[%emt 0:04:18]} 28. a4 {[%emt 0:01:02]} Rxe5 {[%emt 0:01:06]} 29. Nxe5 {[%emt 0:01:47]} g6 {[%emt 0:02:17]} 30. Nxg6 {[%emt 0:06:29]} fxg6 {[%emt 0:00:10]} 31. Bxg6 {[%emt 0:00:25]} Qc8 {[%emt 0:00:43]} 32. Bf7+ {[%emt 0:00:42]} Kg7 {[%emt 0:00:04]} 33. Rd4 {[%emt 0:02:16]} Qc1+ {[%emt 0:01:03]} 34. Kh2 {[%emt 0:00:21]} Bd6+ {[%emt 0:00:16]} 35. Rxd6 {[%emt 0:00:53]} Qc7 {[%emt 0:00:02]} 36. Qe5+ {[%emt 0:00:55]} Kxf7 {[%emt 0:01:46]} 37. h5 {[%emt 0:02:29]} 1/2-1/2

[Event "NED-ch U14 Youth 2019"]
[Site "Assen"]
[Date "2019.04.30"]
[Round "4.11"]
[White "Van Kuijk, Vadim"]
[Black "Arnold, Lorin"]
[Result "1-0"]
[ECO "A48"]
[WhiteElo "1589"]
[BlackElo "1598"]
[Annotator "NA"]
[PlyCount "67"]
[EventDate "2019.04.28"]
[EventType "swiss"]
[EventCountry "NED"]
[SourceTitle "playchess.com"]
[Source "ChessBase"]
[SourceQuality "1"]
[TimeControl "5400+30"]

1. d4 {[%emt 0:00:00]} Nf6 {[%emt 0:00:00]} 2. Bf4 {[%emt 0:00:00]} g6 {[%emt 0:00:04]} 3. Nf3 {[%emt 0:00:00]} Bg7 {[%emt 0:00:19]} 4. e3 {[%emt 0:00:15]} O-O {[%emt 0:00:17]} 5. Nbd2 {[%emt 0:00:38]} d6 {[%emt 0:00:36]} 6. Be2 {[%emt 0:01:53]} Nbd7 {[%emt 0:01:28]} 7. c3 {[%emt 0:04:19]} Qe8 {[%emt 0:01:44]} 8. e4 {[%emt 0:14:40]} e5 {[%emt 0:06:39]} 9. dxe5 {[%emt 0:00:31]} dxe5 {[%emt 0:00:13]} 10. Bg3 {[%emt 0:06:02]} b6 {[%emt 0:00:59]} 11. Bb5 {[%emt 0:11:23]} Qe7 {[%emt 0:33:06]} 12. Bc6 {[%emt 0:13:49]} Rb8 {[%emt 0:04:26]} 13. Qe2 {[%emt 0:09:33]} Nh5 {[%emt 0:05:04]} 14. Qb5 {[%emt 0:17:38]} Nxg3 {[%emt 0:02:10]} 15. hxg3 {[%emt 0:01:06]} Nc5 {[%emt 0:00:23]} 16. Qe2 {[%emt 0:05:24]} Qd6 {[%emt 0:11:47]} 17. Bd5 {[%emt 0:01:52]} c6 {[%emt 0:01:24]} 18. Bc4 {[%emt 0:06:33]} b5 {[%emt 0:00:20]} 19. Bb3 {[%emt 0:00:47]} Rd8 {[%emt 0:18:32]} 20. Rd1 {[%emt 0:02:57]} Nxb3 {[%emt 0:01:50]} 21. Nxb3 {[%emt 0:00:36]} Qxd1+ {[%emt 0:00:26]} 22. Qxd1 {[%emt 0:00:08]} Rxd1+ {[%emt 0:00:02]} 23. Kxd1 {[%emt 0:00:03]} f5 {[%emt 0:00:17]} 24. Na5 {[%emt 0:01:15]} Rb6 {[%emt 0:01:17]} 25. Nd2 {[%emt 0:00:35]} Ra6 {[%emt 0:02:34]} 26. b4 {[%emt 0:00:17]} Bf6 {[%emt 0:01:24]} 27. f3 {[%emt 0:00:43]} Bd8 {[%emt 0:00:35]} 28. Ndb3 {[%emt 0:00:27]} Bb6 {[%emt 0:01:36]} 29. Nxc6 {[%emt 0:00:26]} Be6 {[%emt 0:01:39]} 30. Ne7+ {[%emt 0:00:35]} Kg7 {[%emt 0:00:11]} 31. Nc5 {[%emt 0:00:32]} Bxc5 {[%emt 0:00:23]} 32. bxc5 {[%emt 0:00:25]} Rxa2 {[%emt 0:00:12]} 33. Re1 {[%emt 0:00:34]} a5 {[%emt 0:02:38]} 34. c6 {[%emt 0:00:29]} 1-0

[Event "NED-ch U14 Youth 2019"]
[Site "Assen"]
[Date "2019.04.30"]
[Round "4.13"]
[White "De Putter, Sven"]
[Black "Tiggelman, Vincent"]
[Result "1/2-1/2"]
[ECO "B12"]
[WhiteElo "1381"]
[BlackElo "1378"]
[Annotator "NA"]
[PlyCount "20"]
[EventDate "2019.04.28"]
[EventType "swiss"]
[EventCountry "NED"]
[SourceTitle "playchess.com"]
[Source "ChessBase"]
[SourceQuality "1"]
[TimeControl "5400+30"]

1. e4 {[%emt 0:00:00]} c6 {[%emt 0:00:00]} 2. d4 {[%emt 0:00:00]} d5 {[%emt 0:00:00]} 3. e5 {[%emt 0:00:02]} Bf5 {[%emt 0:00:00]} 4. Nf3 {[%emt 0:00:54]} e6 {[%emt 0:00:02]} 5. Nc3 {[%emt 0:00:34]} Nd7 {[%emt 0:00:20]} 6. Bd3 {[%emt 0:00:20]} Bxd3 {[%emt 0:00:06]} 7. Qxd3 {[%emt 0:00:06]} c5 {[%emt 0:00:14]} 8. Be3 {[%emt 0:00:48]} Qb6 {[%emt 0:00:40]} 9. O-O {[%emt 0:00:23]} cxd4 {[%emt 0:00:55]} 10. Bxd4 {[%emt 0:00:50]} Bc5 {[%emt 0:01:25]} 1/2-1/2

[Event "NED-ch U14 Youth 2019"]
[Site "Assen"]
[Date "2019.05.01"]
[Round "5.1"]
[White "Pham, Khoi"]
[Black "Labruyere, Roger"]
[Result "1-0"]
[ECO "E20"]
[WhiteElo "2140"]
[BlackElo "1922"]
[Annotator "NA"]
[PlyCount "91"]
[EventDate "2019.04.28"]
[EventType "swiss"]
[EventCountry "NED"]
[SourceTitle "playchess.com"]
[Source "ChessBase"]
[SourceQuality "1"]
[TimeControl "5400+30"]

1. d4 {[%emt 0:00:00]} Nf6 {[%emt 0:00:00]} 2. c4 {[%emt 0:00:00]} e6 {[%emt 0:00:00]} 3. Nc3 {[%emt 0:00:00]} Bb4 {[%emt 0:00:00]} 4. f3 {[%emt 0:00:00]} c5 {[%emt 0:00:07]} 5. d5 {[%emt 0:00:00]} b5 {[%emt 0:00:22]} 6. e4 {[%emt 0:00:04]} d6 {[%emt 0:00:44]} 7. Nge2 {[%emt 0:03:10]} bxc4 {[%emt 0:01:10]} 8. Ng3 {[%emt 0:00:13]} exd5 {[%emt 0:01:51]} 9. exd5 {[%emt 0:00:11]} Nbd7 {[%emt 0:03:00]} 10. Bxc4 {[%emt 0:08:56]} Nb6 {[%emt 0:01:52]} 11. Bb5+ {[%emt 0:01:30]} Bd7 {[%emt 0:02:05]} 12. Qe2+ {[%emt 0:01:55]} Qe7 {[%emt 0:00:37]} 13. Bxd7+ {[%emt 0:04:32]} Kxd7 {[%emt 0:01:04]} 14. Nge4 {[%emt 0:01:15]} Nfxd5 {[%emt 0:12:09]} 15. O-O {[%emt 0:03:55]} Bxc3 {[%emt 0:01:23]} 16. bxc3 {[%emt 0:00:06]} Rhe8 {[%emt 0:05:52]} 17. Qb5+ {[%emt 0:01:49]} Kc7 {[%emt 0:01:30]} 18. c4 {[%emt 0:00:39]} Nf6 {[%emt 0:18:10]} 19. Bf4 {[%emt 0:07:11]} Nxe4 {[%emt 0:01:03]} 20. fxe4 {[%emt 0:00:05]} Kb7 {[%emt 0:04:41]} 21. Rad1 {[%emt 0:03:56]} Red8 {[%emt 0:11:30]} 22. a4 {[%emt 0:02:35]} a6 {[%emt 0:02:15]} 23. Qb2 {[%emt 0:00:11]} Kc6 {[%emt 0:06:52]} 24. Qxg7 {[%emt 0:11:22]} Qxe4 {[%emt 0:03:45]} 25. Qxf7 {[%emt 0:05:55]} Qxc4 {[%emt 0:01:26]} 26. Qxh7 {[%emt 0:03:56]} Nd5 {[%emt 0:03:42]} 27. Bg3 {[%emt 0:00:56]} Nc3 {[%emt 0:03:47]} 28. Bxd6 {[%emt 0:06:30]} Rxd6 {[%emt 0:01:01]} 29. Rxd6+ {[%emt 0:00:05]} Kxd6 {[%emt 0:00:04]} 30. Rf6+ {[%emt 0:00:12]} Ke5 {[%emt 0:00:51]} 31. Qe7+ {[%emt 0:00:11]} Kd4 {[%emt 0:01:10]} 32. Rf4+ {[%emt 0:01:19]} Kd3 {[%emt 0:00:07]} 33. Rxc4 {[%emt 0:00:47]} Kxc4 {[%emt 0:00:09]} 34. Qb7 {[%emt 0:01:25]} Rf8 {[%emt 0:02:24]} 35. Qxa6+ {[%emt 0:00:30]} Kb3 {[%emt 0:00:43]} 36. a5 {[%emt 0:03:08]} Rf4 {[%emt 0:02:06]} 37. g3 {[%emt 0:00:47]} Rb4 {[%emt 0:00:21]} 38. Qe6+ {[%emt 0:00:39]} c4 {[%emt 0:01:50]} 39. h4 {[%emt 0:05:15]} Ra4 {[%emt 0:01:03]} 40. a6 {[%emt 0:00:22]} Ra2 {[%emt 0:01:34]} 41. a7 {[%emt 0:01:45]} Nb5 {[%emt 0:02:07]} 42. Qe3+ {[%emt 0:01:16]} Kb4 {[%emt 0:00:21]} 43. Qe1+ {[%emt 0:00:43]} Kc5 {[%emt 0:00:40]} 44. Qe7+ {[%emt 0:00:51]} Kb6 {[%emt 0:01:39]} 45. Qe6+ {[%emt 0:00:05]} Kc5 {[%emt 0:00:10]} 46. Qc8+ {[%emt 0:00:13]} 1-0